Cogmind - Beta 14 @@@ ROGUE MODE // 2025.04.25 @ 18:03:18 Player: celerysam Result: Destroyed by D-53 Grenadier with Mini Grenade Launcher Performance ------------- Evolutions (0) 0 Regions Visited (2) 400 Robots Destroyed (5) 25 Value Destroyed (65) 65 Prototype IDs (0) 0 Alien Tech Used (0) 0 Bonus (0) 0 TOTAL SCORE: 490 Bonus ------- None Cogmind --------- Core Integrity 0/250 Matter 275/300 Energy 68/100 System Corruption 0% Temperature Cool (0) Movement Treading (232) Ox1 Location -10/Mines Parts ------- > --- POWER (1) -------- (None) > --- PROPULSION (2) --- Light Treads Advanced Treads > --- UTILITY (2) ------ Huge Storage Unit > --- WEAPON (2) ------- (None) > --- INVENTORY (25) --- Ion Engine Ion Engine Deuterium Engine Light Treads Aluminum Leg Aluminum Leg Titanium Leg Small Storage Unit Improved Terrain Scanner Seismic Detector Hacking Suite EM Pulse Gun Ion Cannon Mining Laser Scythe Peak State ------------ > --- POWER ------------ Ion Engine > --- PROPULSION ------- Wheel Compact Wheel > --- UTILITY ---------- Huge Storage Unit Sensor Array > --- WEAPON ----------- EM Pulse Gun Medium Laser > --- INVENTORY -------- Ion Engine Ion Engine Deuterium Engine Light Treads Light Treads Advanced Treads Aluminum Leg Aluminum Leg Titanium Leg Wheel Wheel Small Storage Unit Improved Terrain Scanner Hacking Suite EM Pulse Gun Ion Cannon Mining Laser Scythe [Rating: 10] Favorites ----------- Power Ion Engine Engine Ion Engine Propulsion Wheel Treads Light Treads Leg Aluminum Leg Wheel Wheel Utility Sensor Array Device Sensor Array Storage Huge Storage Unit Weapon Medium Laser Energy Gun Medium Laser Build | -11 -10 -10 ------- Run | Yrd Mat Min Slots Evolved . | . . . Power . | . . . Propulsion . | . . . Utility . | . . . Weapon . | . . . Parts Attached 15 | 6 4 5 Power 1 | 1 . . Engine 1 | 1 . . Core . | . . . Reactor . | . . . Propulsion 9 | 2 2 5 Treads 2 | . . 2 Leg 2 | 2 . . Wheel 5 | . 2 3 Hover . | . . . Flight . | . . . Utility 3 | 1 2 . Device 1 | . 1 . Storage 2 | 1 1 . Processor . | . . . Hackware . | . . . Protection . | . . . Artifact . | . . . Weapon 2 | 2 . . Energy Gun 2 | 2 . . Energy Cannon . | . . . Ballistic Gun . | . . . Ballistic Cannon . | . . . Launcher . | . . . Special Weapon . | . . . Impact Weapon . | . . . Slashing Weapon . | . . . Piercing Weapon . | . . . Special Melee Weapon . | . . . Unidentified Prototypes . | . . . Parts Lost 9 | . . 9 Power 1 | . . 1 Propulsion 5 | . . 5 Utility 1 | . . 1 Weapon 2 | . . 2 Highest Loss Streak 8 | . . 8 To Critical Strikes . | . . . Average Slot Usage (%) 93 | . 93 93 Engine 12 | . 14 12 Leg 7 | . 23 . Wheel 19 | . 4 26 Device 10 | . 8 12 Storage 14 | . 14 14 Energy Gun 26 | . 28 26 Peak Build Rating 10 | 6 7 10 Average Rating 7 | 4 6 8 On Entrance 4 | . 6 7 Naked Turns . | . . . Heaviest Build 90 | 14 90 90 Greatest Support 42 | 20 20 42 Greatest Overweight (x) 7 | . 4 7 Average Overweight (x) 1 | . . 3 Largest Inventory Capacity 25 | 8 25 25 Average Capacity 18 | 6 10 25 Most Carried 19 | 7 9 19 Average Carried 11 | 5 7 14 Final Capacity 25 | 8 25 25 Final Carried 15 | 6 9 15 Class Distribution -------------------- 100% | Mutant Dominant Class ---------------- Mutant | -10/Materials Mutant | -10/Mines Resources | -11 -10 -10 ----------- Run | Yrd Mat Min Matter Collected 310 | 152 . 158 Remotely . | . . . Salvage Created 102 | . . 102 Parts 9 | . . 9 Haulers Intercepted . | . . . Recyclers Shooed . | . . . Parts Field Recycled . | . . . Retrieved Matter . | . . . Parts Self-Destructed . | . . . Prevented . | . . . Kills | -11 -10 -10 ------- Run | Yrd Mat Min Combat Hostiles Destroyed 4 | . . 4 Guns 1 | . . 1 AOE 3 | . . 3 Classes Destroyed 3 | . . 3 Worker 1 | . . 1 Swarmer 3 | . . 3 Grunt 1 | . . 1 Best Kill Streak 3 | . . 3 Combat Bots Only 3 | . . 3 Max Kills in Single Turn 2 | . . 2 Gunslinging . | . . . Exploded 2 | . . 2 Melee . | . . . Uniques/NPCs Destroyed . | . . . Combat | -11 -10 -10 -------- Run | Yrd Mat Min Hostile Shots Fired 75 | . . 75 Missed 17 | . . 17 Damage Taken 820 | . . 820 Core 267 | . . 267 Absorbed by Shields . | . . . Core Remaining (%) 100 | 100 . . Volleys Fired 18 | . . 18 Largest 2 | . . 2 Hottest 90 | . . 90 Shots Fired 36 | . . 36 Gun 36 | . . 36 Cannon . | . . . Launcher . | . . . Special . | . . . Kinetic . | . . . Thermal 18 | . . 18 Explosive . | . . . Electromagnetic 18 | . . 18 Robot Hit Streak 5 | . . 5 Robot Miss Streak 4 | . . 4 Penetration Max . | . . . Secondary Targets . | . . . Shots Hit Robots 21 | . . 21 Core Hits 9 | . . 9 Critical Kills . | . . . Critical Parts Destroyed . | . . . Critical Strikes 1 | . . 1 Burn 1 | . . 1 Melee Attacks . | . . . Impact . | . . . Slashing . | . . . Piercing . | . . . Sneak Attacks . | . . . Combat Hostiles . | . . . Follow-up Attacks . | . . . Damage Inflicted 379 | . . 379 Guns 260 | . . 260 Cannons . | . . . Explosions 119 | . . 119 Melee . | . . . Ramming . | . . . Kinetic . | . . . Thermal 228 | . . 228 Explosive . | . . . Electromagnetic 151 | . . 151 Impact . | . . . Slashing . | . . . Piercing . | . . . Highest Corruption . | . . . Average Corruption . | . . . Corruption Purged . | . . . Corruption Blocked . | . . . Overload Shots . | . . . Overflow Damage . | . . . Projectiles . | . . . Explosions . | . . . Melee . | . . . Knockbacks . | . . . Impact . | . . . Kinetic . | . . . Secondary . | . . . Self-Inflicted Damage 6 | . . 6 Shots 1 | . . 1 Rammed . | . . . Targets Rammed . | . . . Kicked . | . . . Crushed . | . . . Highest Temperature 354 | . . 354 Average Temperature 132 | . . 132 Received Heat Transfer 54 | . . 54 Effects 1 | . . 1 Energy Bleed 1 | . . 1 Siege Activations . | . . . Robots Corrupted . | . . . Combat Hostiles . | . . . Parts Fried . | . . . Impact Corruptions . | . . . Robots Melted . | . . . Combat Hostiles . | . . . Parts Melted 1 | . . 1 Heat Transferred 507 | . . 507 Parts Sabotaged . | . . . Parts Stolen . | . . . Parts Stripped . | . . . Power Chain Reactions 2 | . . 2 Alert | -11 -10 -10 ------- Run | Yrd Mat Min Peak Influence 148 | . 15 148 Initial 5 | . . 5 Average 42 | . 6 71 Maximum Alert Level . | . . . Low Security (%) 100 | 100 100 100 Level 1 . | . . . Level 2 . | . . . Level 3 . | . . . Level 4 . | . . . Level 5 . | . . . High Security . | . . . Max Security . | . . . Squads Dispatched 1 | . . 1 Investigation 1 | . . 1 Extermination . | . . . Reinforcement . | . . . Assault . | . . . Garrison . | . . . Intercept . | . . . Searches Triggered . | . . . Construction Impeded . | . . . Haulers Reinforced . | . . . Active Scanning Responses . | . . . Cargo Convoy Interrupts . | . . . Stealth | -11 -10 -10 --------- Run | Yrd Mat Min Distress Signals . | . . . Communications Jammed . | . . . Distress Signals . | . . . Times Spotted 16 | . . 16 Peak Tracking Total 5 | . . 5 Tactical Retreats 3 | . . 3 Traps | -11 -10 -10 ------- Run | Yrd Mat Min Traps Triggered . | . . . Indirectly . | . . . Trap Hack Attempts . | . . . Triggered . | . . . Disarmed . | . . . Reprogrammed . | . . . Reused . | . . . Traps Extracted . | . . . Installed . | . . . Triggered . | . . . Machines | -11 -10 -10 ---------- Run | Yrd Mat Min Machines Disabled . | . . . Max in Single Turn . | . . . Machines Repaired . | . . . Machines Dismantled . | . . . Machines Sabotaged . | . . . Overloaded Fab Kills . | . . . Hacking | -11 -10 -10 --------- Run | Yrd Mat Min Machines Accessed 1 | . . 1 Terminals . | . . . Fabricators . | . . . Repair Stations . | . . . Recycling Units . | . . . Scanalyzers . | . . . Garrison Access . | . . . Total Hacks 1 | . . 1 Successful 1 | . . 1 Failed . | . . . Catastrophic . | . . . Database Lockouts . | . . . Manual . | . . . Terminals . | . . . Fabricators . | . . . Repair Stations . | . . . Recycling Units . | . . . Scanalyzers . | . . . Garrison Access . | . . . Terminal Hacks 1 | . . 1 Open Door 1 | . . 1 Fabricator Hacks . | . . . Repair Station Hacks . | . . . Recycling Unit Hacks . | . . . Scanalyzer . | . . . Garrison Access Hacks . | . . . Unauthorized Hacks . | . . . Terminals . | . . . Fabricators . | . . . Repair Stations . | . . . Recycling Units . | . . . Scanalyzers . | . . . Garrison Access . | . . . Data Cores Recovered . | . . . Used . | . . . Hacking Detections . | . . . Full Trace Events . | . . . Feedback Events . | . . . Feedback Blocked . | . . . Robot Schematics Acquired . | . . . Robots Built . | . . . Authchips . | . . . Time . | . . . Total Robot Build Rating . | . . . Part Schematics Acquired . | . . . Parts Built . | . . . Authchips . | . . . Time . | . . . Total Part Build Rating . | . . . Parts Repaired . | . . . Time . | . . . Parts Recycled . | . . . Recycled Matter . | . . . Retrieved Matter . | . . . Retrieved Components . | . . . Parts Scanalyzed . | . . . Part Schematics Acquired . | . . . Parts Damaged . | . . . Bothacking | -11 -10 -10 ------------ Run | Yrd Mat Min Used RIF Installer . | . . . Robots Hacked . | . . . Non-combat . | . . . Combat . | . . . Robot Hacks Applied . | . . . Relay Couplers Released . | . . . Fabnet Peak Effective % . | . . . Robots Rewired . | . . . Allies Hacked . | . . . Hacks Repelled . | . . . Allies | -11 -10 -10 -------- Run | Yrd Mat Min Total Allies . | . . . Largest Group . | . . . Highest-Rated Group . | . . . Highest-Rated Ally . | . . . Total Orders . | . . . Ally Attacks . | . . . Total Damage . | . . . Kills . | . . . Allies Corrupted . | . . . Allies Melted . | . . . Intel | -11 -10 -10 ------- Run | Yrd Mat Min Robot Analysis Total . | . . . Derelict Logs Recovered . | . . . Drone Launches . | . . . Drone Recoveries . | . . . Exploration | -11 -10 -10 ------------- Run | Yrd Mat Min Turns Passed 437 | 63 122 252 Spaces Moved 272 | 46 95 131 Core 12 | 12 . . Treads 1 | . . 1 Legs 112 | 34 78 . Wheels 147 | . 17 130 Hover . | . . . Flight . | . . . Fastest Speed 50 | 50 80 135 Average Speed 126 | 101 119 139 Slowest Speed 232 | 120 140 232 Overloaded Moves . | . . . Propulsion Burnouts . | . . . Robots Hopped . | . . . Cave-ins Triggered . | . . . Exploration Rate (%) 16 | 3 22 23 Regions Visited 2 Branch Regions 1 Pre-discovered Areas . | . . . Known Exits Taken . | . . . Unknown Exits Taken 2 | 1 1 . Scrap Searched 2 | . . 2 Spaces Dug . | . . . Terrain Destroyed 16 | . . 16 Melee . | . . . Projectile . | . . . AOE 16 | . . 16 Terrain Rammed . | . . . Walls Destroyed . | . . . Machines Disabled . | . . . Actions | -11 -10 -10 --------- Run | Yrd Mat Min Total 328 | 60 102 166 Wait 1 | . . 1 Move 270 | 45 94 131 Hop . | . . . Pick Up 23 | 9 3 11 Fast Attach 4 | 3 1 . Attach 8 | 3 . 5 Detach . | . . . Swap 3 | . 3 . Drop 1 | . 1 . Fire 18 | . . 18 Melee . | . . . Ram . | . . . Kick . | . . . Crush . | . . . Escape Stasis . | . . . Rewire . | . . . Trap . | . . . Miscellaneous . | . . . Route ------- -11/Scrapyard -10/Materials (discovered 2 exits: [*Mat] / *Min) -10/Mines (discovered 1 exit: [Mat]) History --------- Turn | Location | Event 10 | -11/Scrapyard | Discovered new exit (range 15) 64 | -11/Scrapyard | Entered Materials 146 | -10/Materials | Discovered new exit (range 8) 146 | -10/Materials | Discovered new exit (range 9) 186 | -10/Materials | Entered Mines 186 | -10/Mines | Discovered new exit (range 9) 210 | -10/Mines | Met a Derelict shopkeep closing up shop 231 | -10/Mines | Met a Derelict bent on vengeance 281 | -10/Mines | Assembled infested the area 304 | -10/Mines | Build established: Mutant 426 | -10/Mines | Core integrity fell below 50% 434 | -10/Mines | Core integrity fell below 20% 438 | -10/Mines | Destroyed by D-53 Grenadier with Mini Grenade Launcher Last Messages --------------- 00409_ Acquired 5 matter. 00428_ U-05 Engineer lays Concrete. 00430_ U-05 Engineer builds a Wall. 00430_ Com. Wheel destroyed. 00430_ Med. Laser destroyed. 00430_ Wheel destroyed. 00430_ K-01 Serf destroyed. 00430_ U-05 Engineer lays Concrete. 00431_ U-05 Engineer forms the Earth. 00431_ U-05 Engineer builds a Wall. 00432_ T-07 Excavator is excavating. 00433_ The unstable cave ceiling collapses. 00434_ Wheel destroyed. 00435_ The unstable cave ceiling collapses. 00435_ U-05 Engineer builds a Wall. 00436_ The unstable cave ceiling collapses. 00436_ R-06 Scavenger destroyed. 00437_ The unstable cave ceiling collapses. 00437_ U-05 Engineer lays Concrete. 00438_ U-05 Engineer builds a Wall. Map ----- +----------------------------------------------------+ | ???????????????? ???????????????? | | ???????????????? ????????????????? | | ???????????????? *! ?????????????????? | | ???????????????# =%#?????????????????? | | ??????????????# #??????????????????? | | ????????###??? ##?????????????????? | | ???????? ??? #?????????????????? | | ????????# #???= ! #?????????????????? | | ????????# #?##%* #?????????????????? | | ????????# ###%! #?????????????????? | | ??????###|## #??????????####??### | | ??????# !% #??????????## ##?# | | ??????# | % ##????####### ### | | ??????# ## ###????##""## ## % | | ??????#!### ###??????#" #X # | | ??????#%#?####????????#" | | ??????#!#?????????????#" % | | ??????#%########??#####" # = * | | ??????#a# # #??# """"## = | | ??????#! #####" "### | | ??????# d uu # %= ## | | ??????## # d # # ["#### #### # | | ??????# # [=# [ #???####??# ## | | ??????## [%## ##?????????## ##? | | ???????# t ==! #??????????####?? | | ???????# @ #???????????????? | | ???????# #???????????????? | | ???????# ##???????????????? | | ???????# # ##????????????????? | | ???????#### ## ##?????????????????? | | ??????????###### ##??????????????????? | | ???????????????####???????????????????? | | ??????????????????????????????????????? | | ??????????????????????????????????????? | | ??????????????????????????????????????? | | ??????????????????????????????????????? | | | | | | | | | | | | | | | | | | | | | | | | | | | | | +----------------------------------------------------+ Best States ------------- Heat Dissipation 25 Energy Generation 10 Energy Capacity 250 Matter Stores 300 Matter Capacity 300 Sight Range 16 Robot Scan Range 14 Terrain Scan Density 10 Evasion (%) 55 Item Schematics ----------------- None Robot Schematics ------------------ None Fabricated ------------ Nothing Alien Tech Used ----------------- None Achievements -------------- None Challenges ------------ None Game ------ Seed PiercingEtherialWell Manual? 0 Play Time 00:06:43 Cumulative 218.9 hours Start 2025.04.25 @ 17:58:19 End 2025.04.25 @ 18:03:18 Sessions 1 Manual Loads 0 Difficulty Rogue Special Mode None Game No. 316 Rogue 316 Adventurer 0 Explorer 0 Win Type - Total 1 Types 1/0/0/0/0/0/0/0/0 Lore% 34 Gallery% 63 Achievement% 42 Wizard Run 0 Options --------- Layout 1 ASCII 0 Keyboard 0 Movement Mouse Keybinds 0 Fullscreen 2 Font 24/Smallcaps Map View 50x35 Zoom Use 0% Tactical HUD 1 Map Filters NONE Filters NONE Steam 1 RUN: a23581d5-da98-44c2-ae81-8c676e9882fe